fUST/lending_fUST_20240917
["ID","MTS","AMOUNT","RATE_DAILY","PERIOD"]
[338375169,1726576241925,-183.608248,0.0001779,2]
[338375170,1726576241935,-373.317866,0.0001779,2]
[338375171,1726576241944,-373.317866,0.0001779,2]
[338375172,1726576241954,-373.317866,0.0001779,2]
[338375173,1726576241963,-373.317866,0.0001779,2]
[338375174,1726576241972,-151.0,0.0001779,2]
[338375175,1726576241983,-151.0,0.0001779,2]
[338375176,1726576241993,-151.0,0.0001779,2]
[338375177,1726576242004,-151.0,0.0001779,2]
[338375178,1726576242015,-279.403508,0.0001779,2]
[338375179,1726576242027,-279.403508,0.0001779,2]
[338375180,1726576242042,-279.403508,0.0001779,2]
[338375181,1726576242052,-279.403508,0.0001779,2]
[338375182,1726576242062,-1839.236717,0.0001779,2]
[338375183,1726576242072,-1839.236717,0.0001779,2]
[338375184,1726576242083,-1839.236717,0.0001779,2]
[338375185,1726576242093,-1839.236717,0.0001779,2]
[338375186,1726576242103,-486.132448,0.0001779,2]
[338375187,1726576242112,-486.132448,0.0001779,2]
[338375188,1726576242122,-486.132448,0.0001779,2]
[338375189,1726576242132,-486.132448,0.0001779,2]
[338375190,1726576242143,-3646.432546,0.0001779,2]
[338375191,1726576242152,-3646.432546,0.0001779,2]
[338375192,1726576242162,-3646.432546,0.0001779,2]
[338375193,1726576242172,-3646.432546,0.0001779,2]
[338375194,1726576242181,-151.0,0.0001779,2]
[338375195,1726576242190,-151.0,0.0001779,2]
[338375196,1726576242200,-554.055012,0.0001779,2]
[338375197,1726576242210,-554.055012,0.0001779,2]
[338375198,1726576242219,-351.412627,0.0001779,2]
[338375199,1726576242229,-351.412627,0.0001779,2]
[338375200,1726576242239,-314.42234,0.0001779,2]
[338375201,1726576242249,-314.42234,0.0001779,2]
[338375202,1726576242258,-151.0,0.0001779,2]
[338375203,1726576242270,-258.517291,0.0001779,2]
[338375204,1726576242279,-151.0,0.0001779,2]
[338375205,1726576242288,-320.584509,0.0001779,2]
[338375206,1726576242298,-320.584509,0.0001779,2]
[338375207,1726576242309,-210.519838,0.0001779,2]
[338375208,1726576242320,-210.519838,0.0001779,2]
[338375209,1726576242330,-143452.28607615,0.000178,2]
[338375210,1726576242340,-151.0,0.000178,2]
[338375211,1726576242352,-151.0,0.000178,2]
[338375212,1726576242363,-151.0,0.000178,2]
[338375213,1726576242373,-151.0,0.000178,2]
[338375214,1726576242383,-151.0,0.000178,2]
[338375215,1726576242393,-801.747779,0.000178,2]
[338375216,1726576242402,-151.0,0.000178,2]
[338375217,1726576242411,-151.0,0.000178,2]
[338375218,1726576242421,-260.962564,0.000178,2]
[338375219,1726576242431,-278.215998,0.000178,2]
[338375220,1726576242440,-278.215998,0.000178,2]
[338375221,1726576242450,-151.0,0.000178,2]
[338375222,1726576242461,-278.215998,0.000178,2]
[338375223,1726576242470,-278.215998,0.000178,2]
[338375224,1726576242480,-172.335319,0.000178,2]
[338375225,1726576242489,-172.335319,0.000178,2]
[338375226,1726576242499,-151.755896,0.000178,2]
[338375227,1726576242508,-361.651655,0.000178,2]
[338375228,1726576242518,-361.651655,0.000178,2]
[338375229,1726576242528,-151.755896,0.000178,2]
[338375230,1726576242538,-361.651655,0.000178,2]
[338375231,1726576242548,-361.651655,0.000178,2]
[338375232,1726576242558,-151.0,0.000178,2]
[338375233,1726576242570,-151.0,0.000178,2]
[338375234,1726576242580,-183.608248,0.000178,2]
[338375235,1726576242589,-183.608248,0.000178,2]
[338375236,1726576242598,-151.0,0.000178,2]
[338375237,1726576242607,-298.081485,0.000178,2]
[338375238,1726576242617,-183.608248,0.000178,2]
[338375239,1726576242626,-183.608248,0.000178,2]
[338375240,1726576242636,-373.317866,0.000178,2]
[338375241,1726576242646,-373.317866,0.000178,2]
[338375242,1726576242656,-373.317866,0.000178,2]
[338375243,1726576242665,-373.317866,0.000178,2]
[338375244,1726576242674,-151.0,0.000178,2]
[338375245,1726576242684,-151.0,0.000178,2]
[338375246,1726576242697,-279.403508,0.000178,2]
[338375247,1726576242706,-279.403508,0.000178,2]
[338375248,1726576242716,-1839.236717,0.000178,2]
[338375249,1726576242725,-1839.236717,0.000178,2]
[338375250,1726576242734,-486.132448,0.000178,2]
[338375251,1726576242744,-486.132448,0.000178,2]
[338375252,1726576242754,-3646.432546,0.000178,2]
[338375253,1726576242764,-3646.432546,0.000178,2]
[338375254,1726576242774,-151.0,0.000178,2]
[338375255,1726576242783,-151.0,0.000178,2]
[338375256,1726576242793,-151.0,0.000178,2]
[338375257,1726576242802,-173.401294,0.000178,2]
[338375258,1726576242811,-554.055012,0.000178,2]
[338375259,1726576242821,-554.055012,0.000178,2]
[338375261,1726576242832,-554.055012,0.000178,2]
[338375262,1726576242842,-554.055012,0.000178,2]
[338375263,1726576242851,-351.412627,0.000178,2]
[338375264,1726576242860,-351.412627,0.000178,2]
[338375265,1726576242870,-351.412627,0.000178,2]
[338375266,1726576242879,-351.412627,0.000178,2]
[338375267,1726576242888,-314.42234,0.000178,2]
[338375268,1726576242898,-314.42234,0.000178,2]
[338375269,1726576242907,-314.42234,0.000178,2]
[338375270,1726576242916,-314.42234,0.000178,2]
[338375271,1726576242925,-151.0,0.000178,2]
[338375272,1726576242935,-151.0,0.000178,2]
[338375274,1726576242944,-320.584509,0.000178,2]
[338375276,1726576242953,-320.584509,0.000178,2]
[338375278,1726576242963,-320.584509,0.000178,2]
[338375280,1726576242972,-320.584509,0.000178,2]
[338375281,1726576242981,-210.519838,0.000178,2]
[338375282,1726576242991,-210.519838,0.000178,2]
[338375283,1726576243000,-306.0,0.00017808,2]
[338375285,1726576243009,-307.4830002,0.00017808,2]
[338375287,1726576243018,-153.0,0.00017808,2]
[338375289,1726576243027,-153.0,0.00017808,2]
[338375291,1726576243037,-153.0,0.00017808,2]
[338375292,1726576243046,-511.2648706,0.0001786,2]
[338375294,1726576243055,-239.3069737,0.00017887,2]
[338375296,1726576243065,-153.0,0.00017887,2]
[338375297,1726576243074,-153.0,0.00017887,2]
[338375298,1726576243088,-153.0,0.000179,2]
[338375299,1726576243097,-151.0,0.00017944,2]
[338375300,1726576243106,-151.0,0.00017944,2]
[338375301,1726576243116,-151.0,0.00017944,2]
[338375302,1726576243125,-151.0,0.00017944,2]
[338375303,1726576243134,-151.0,0.00017944,2]
[338375304,1726576243145,-151.0,0.00017944,2]
[338375305,1726576243156,-151.0,0.00017944,2]
[338375306,1726576243170,-151.0,0.00017944,2]
[338375307,1726576243181,-151.0,0.00017944,2]
[338375308,1726576243192,-151.0,0.00017944,2]
[338375309,1726576243203,-801.747779,0.00017944,2]
[338375310,1726576243214,-801.747779,0.00017944,2]
[338375311,1726576243225,-801.747779,0.00017944,2]
[338375312,1726576243234,-801.747779,0.00017944,2]
[338375313,1726576243247,-801.747779,0.00017944,2]
[338375314,1726576243258,-801.747779,0.00017944,2]
[338375315,1726576243268,-801.747779,0.00017944,2]
[338375316,1726576243278,-151.0,0.00017944,2]
[338375317,1726576243287,-151.0,0.00017944,2]
[338375318,1726576243296,-151.0,0.00017944,2]
[338375319,1726576243305,-151.0,0.00017944,2]
[338375320,1726576243315,-278.215998,0.00017944,2]
[338375321,1726576243324,-278.215998,0.00017944,2]
[338375322,1726576243338,-151.0,0.00017944,2]
[338375323,1726576243347,-278.215998,0.00017944,2]
[338375324,1726576243356,-151.0,0.00017944,2]
[338375325,1726576243366,-151.0,0.00017944,2]
[338375326,1726576243375,-151.0,0.00017944,2]
[338375327,1726576243385,-278.215998,0.00017944,2]
[338375328,1726576243394,-278.215998,0.00017944,2]
[338375329,1726576243404,-278.216004,0.00017944,2]
[338375330,1726576243413,-172.335319,0.00017944,2]
[338375331,1726576243423,-172.335319,0.00017944,2]
[338375332,1726576243431,-172.335319,0.00017944,2]
[338375333,1726576243441,-172.335319,0.00017944,2]
[338375334,1726576243450,-172.335319,0.00017944,2]
[338375335,1726576243459,-172.335319,0.00017944,2]
[338375336,1726576243467,-172.335319,0.00017944,2]
[338375337,1726576243477,-172.335319,0.00017944,2]
[338375338,1726576243486,-151.755896,0.00017944,2]
[338375339,1726576243495,-151.755896,0.00017944,2]
[338375340,1726576243504,-151.755896,0.00017944,2]
[338375341,1726576243513,-151.755896,0.00017944,2]
[338375342,1726576243522,-361.651655,0.00017944,2]
[338375343,1726576243532,-361.651655,0.00017944,2]
[338375344,1726576243542,-151.755896,0.00017944,2]
[338375345,1726576243551,-151.755896,0.00017944,2]
[338375346,1726576243560,-151.755896,0.00017944,2]
[338375347,1726576243569,-151.755896,0.00017944,2]
[338375348,1726576243579,-361.651655,0.00017944,2]
[338375349,1726576243590,-361.651655,0.00017944,2]
[338375350,1726576243599,-154.39486,0.00017944,2]
[338375351,1726576243608,-183.608248,0.00017944,2]
[338375352,1726576243617,-183.608248,0.00017944,2]
[338375353,1726576243630,-183.608248,0.00017944,2]
[338375354,1726576243640,-183.608248,0.00017944,2]
[338375355,1726576243649,-183.608248,0.00017944,2]
[338375356,1726576243659,-183.608246,0.00017944,2]
[338375357,1726576243668,-373.317866,0.00017944,2]
[338375358,1726576243678,-373.317866,0.00017944,2]
[338375359,1726576243687,-373.317866,0.00017944,2]
[338375360,1726576243697,-373.317866,0.00017944,2]
[338375361,1726576243706,-151.0,0.00017944,2]
[338375362,1726576243716,-151.0,0.00017944,2]
[338375363,1726576243726,-151.0,0.00017944,2]
[338375364,1726576243736,-151.0,0.00017944,2]
[338375365,1726576243746,-279.403508,0.00017944,2]
[338375366,1726576243757,-279.403508,0.00017944,2]
[338375367,1726576243767,-279.403508,0.00017944,2]
[338375368,1726576243777,-279.403508,0.00017944,2]
[338375369,1726576243786,-1839.236717,0.00017944,2]
[338375370,1726576243795,-1839.236717,0.00017944,2]
[338375371,1726576243805,-1839.236717,0.00017944,2]
[338375372,1726576243814,-1839.236717,0.00017944,2]
[338375373,1726576243824,-486.132448,0.00017944,2]
[338375374,1726576243835,-486.132448,0.00017944,2]
[338375375,1726576243989,-486.132448,0.00017944,2]
[338375376,1726576243999,-486.132448,0.00017944,2]
[338375377,1726576244008,-3646.432546,0.00017944,2]
[338375378,1726576244017,-3646.432546,0.00017944,2]
[338375379,1726576244027,-3646.432546,0.00017944,2]
[338375380,1726576244036,-3646.432546,0.00017944,2]
[338375381,1726576244046,-151.0,0.00017944,2]
[338375382,1726576244055,-554.055012,0.00017944,2]
[338375383,1726576244064,-554.055012,0.00017944,2]
[338375384,1726576244074,-554.055012,0.00017944,2]
[338375385,1726576244085,-554.055012,0.00017944,2]
[338375386,1726576244094,-351.412627,0.00017944,2]
[338375387,1726576244103,-351.412627,0.00017944,2]
[338375388,1726576244113,-351.412627,0.00017944,2]
[338375389,1726576244122,-351.412627,0.00017944,2]
[338375390,1726576244134,-314.42234,0.00017944,2]
[338375391,1726576244145,-314.42234,0.00017944,2]
[338375392,1726576244156,-314.42234,0.00017944,2]
[338375393,1726576244168,-314.42234,0.00017944,2]
[338375394,1726576244177,-151.0,0.00017944,2]
[338375395,1726576244187,-251.20258883,0.00017944,2]
[338375396,1726576244196,-320.584509,0.00017944,2]
[338375397,1726576244205,-320.584509,0.00017944,2]
[338375398,1726576244215,-320.584509,0.00017944,2]
[338375399,1726576244225,-320.584509,0.00017944,2]
[338375400,1726576244235,-210.519838,0.00017944,2]
[338375401,1726576244245,-210.519838,0.00017944,2]
[338375402,1726576244256,-210.519838,0.00017944,2]
[338375403,1726576244267,-210.51983,0.00017944,2]
[338375404,1726576244277,-151.0,0.00017959,2]
[338375405,1726576244286,-232.779575,0.00017959,2]
[338375406,1726576244296,-151.0,0.00017959,2]
[338375408,1726576244306,-151.0,0.00017959,2]
[338375410,1726576244317,-151.0,0.0001796,2]
[338375412,1726576244327,-151.0,0.0001796,2]
[338375413,1726576244339,-151.0,0.0001796,2]
[338375415,1726576244349,-269.448272,0.0001796,2]
[338375416,1726576244358,-151.0,0.0001796,2]
[338375418,1726576244368,-151.0,0.0001796,2]
[338375420,1726576244378,-151.0,0.0001796,2]
[338375422,1726576244387,-151.0,0.0001796,2]
[338375424,1726576244398,-3280.71668,0.0001796,2]
[338375426,1726576244407,-151.0,0.0001796,2]
[338375428,1726576244419,-801.747779,0.0001796,2]
[338375430,1726576244432,-801.747779,0.0001796,2]
[338375432,1726576244443,-151.0,0.0001796,2]
[338375433,1726576244453,-206.134602,0.0001796,2]
[338375435,1726576244463,-172.335319,0.0001796,2]
[338375438,1726576244483,-172.335319,0.0001796,2]
[338375440,1726576244495,-151.755896,0.0001796,2]
[338375442,1726576244505,-361.651655,0.0001796,2]
[338375444,1726576244516,-151.755896,0.0001796,2]
[338375445,1726576244526,-361.651655,0.0001796,2]
[338375447,1726576244537,-373.317866,0.0001796,2]
[338375449,1726576244548,-373.317866,0.0001796,2]
[338375451,1726576244560,-151.0,0.0001796,2]
[338375453,1726576244570,-151.0,0.0001796,2]
[338375455,1726576244582,-279.403508,0.0001796,2]
[338375456,1726576244592,-279.403504,0.0001796,2]
[338375457,1726576244602,-1839.236717,0.0001796,2]
[338375458,1726576244612,-1839.236708,0.0001796,2]
[338375459,1726576244621,-486.132448,0.0001796,2]
[338375460,1726576244631,-486.132458,0.0001796,2]
[338375461,1726576244640,-3646.432546,0.0001796,2]
[338375462,1726576244651,-3646.432545,0.0001796,2]
[338375463,1726576244662,-151.0,0.0001797,2]
[338375464,1726576244672,-151.0,0.0001797,2]
[338375465,1726576244682,-151.0,0.0001797,2]
[338375466,1726576244691,-151.0,0.0001797,2]
[338375467,1726576244701,-151.0,0.0001797,2]
[338375468,1726576244711,-151.0,0.0001797,2]
[338375469,1726576244722,-151.0,0.0001797,2]
[338375470,1726576244732,-151.0,0.0001797,2]
[338375471,1726576244743,-151.0,0.0001797,2]
[338375472,1726576244753,-151.0,0.0001797,2]
[338375473,1726576244763,-151.0,0.0001797,2]
[338375474,1726576244773,-151.0,0.0001797,2]
[338375475,1726576244782,-151.0,0.0001797,2]
[338375476,1726576244792,-151.0,0.0001797,2]
[338375477,1726576244801,-151.0,0.0001797,2]
[338375478,1726576244811,-151.0,0.0001797,2]
[338375479,1726576244820,-3280.716682,0.0001797,2]
[338375480,1726576244830,-151.0,0.0001797,2]
[338375481,1726576244840,-801.747779,0.0001797,2]
[338375482,1726576244849,-801.747775,0.0001797,2]
[338375483,1726576244859,-151.0,0.0001797,2]
[338375484,1726576244868,-172.335319,0.0001797,2]
[338375485,1726576244878,-172.335315,0.0001797,2]
[338375486,1726576244887,-151.755896,0.0001797,2]
[338375487,1726576244897,-361.651655,0.0001797,2]
[338375488,1726576244907,-151.755894,0.0001797,2]
[338375489,1726576244916,-361.651658,0.0001797,2]
[338375490,1726576244926,-373.317866,0.0001797,2]
[338375491,1726576244955,-373.317875,0.0001797,2]
[338375492,1726576244975,-554.055012,0.0001797,2]
[338375493,1726576244996,-554.055008,0.0001797,2]
[338375494,1726576245018,-351.412627,0.0001797,2]
[338375495,1726576245038,-351.412625,0.0001797,2]
[338375496,1726576245057,-314.42234,0.0001797,2]
[338375497,1726576245081,-314.42234,0.0001797,2]
[338375498,1726576245096,-320.584509,0.0001797,2]
[338375499,1726576245113,-320.584501,0.0001797,2]
[338375500,1726576245131,-230.33791163,0.00017973,2]
[338375501,1726576245152,-500.0,0.00017973,2]
[338375502,1726576245166,-153.0,0.00017973,2]
[338375503,1726576245181,-153.0,0.00017973,2]
[338375504,1726576245198,-208.6901718,0.00017973,2]
[338375505,1726576245219,-208.6901718,0.00017973,2]
[338375506,1726576245232,-151.0,0.00017979,2]
[338375507,1726576245251,-151.0,0.00017979,2]
[338375508,1726576245272,-151.0,0.00017979,2]
[338375509,1726576245293,-151.0,0.00017979,2]
[338375510,1726576245313,-151.0,0.0001798,2]
[338375511,1726576245330,-151.0,0.0001798,2]
[338375512,1726576245348,-151.0,0.0001798,2]
[338375513,1726576245365,-409.82310393,0.00017989,2]
[338375514,1726576245382,-12062.39313468,0.00017989,2]
[338375515,1726576245404,-151.0,0.00017989,2]
[338375516,1726576245420,-151.0,0.00017989,2]
[338375517,1726576245437,-151.0,0.00017989,2]
[338375518,1726576245452,-151.0,0.00017989,2]
[338375519,1726576245468,-290.504959,0.00017989,2]
[338375520,1726576245484,-153.0,0.00018,2]
[338375521,1726576245499,-1000.0,0.00018042,2]
[338375522,1726576245516,-1000.0,0.00018042,2]
[338375523,1726576245532,-1000.0,0.00018042,2]
[338375524,1726576245549,-1000.0,0.00018042,2]
[338375525,1726576245563,-477.0724992,0.00018042,2]
[338375526,1726576245578,-1000.0,0.00018042,2]
[338375527,1726576245596,-389.98742856,0.00018042,2]
[338375528,1726576245618,-620.56125535,0.00018045,2]
[338375529,1726576245636,-500.0,0.00018046,7]
[338375530,1726576245655,-500.0,0.00018046,7]
[338375531,1726576245671,-500.0,0.00018046,7]
[338375532,1726576245687,-500.0,0.00018046,7]
[338375533,1726576245703,-500.0,0.00018046,7]
[338375535,1726576245719,-500.0,0.00018046,7]
[338375536,1726576245736,-315.35,0.00018046,7]
[338375537,1726576245754,-153.0,0.00018052,2]
[338375538,1726576245774,-7725.90689101,0.0001836,2]
[338375540,1726576245789,-511.2648706,0.0001836,2]
[338375542,1726576245804,-600.0,0.00018403,2]
[338375543,1726576245819,-160.0,0.00018567,3]
[338375544,1726576245835,-587.0,0.00018575,2]
[338375545,1726576245850,-600.0,0.00018595,2]
[338375546,1726576245865,-150.112235,0.000186,2]
[338375547,1726576245879,-1000.0,0.00018609,2]
[338375549,1726576245893,-17327.821081,0.0001863,2]
[338375552,1726576245908,-1000.0,0.00018646,2]
[338375554,1726576245922,-1313.47764026,0.00018664,2]
[338375556,1726576245937,-1000.0,0.00018678,2]
[338375559,1726576245951,-1000.0,0.00018698,2]
[338375560,1726576245965,-150.112233,0.000187,2]
[338375561,1726576245980,-1000.0,0.00018704,2]
[338375562,1726576245994,-160.0,0.00018734,4]
[338375563,1726576246008,-151.0,0.00018738,2]
[338375565,1726576246023,-151.0,0.00018738,2]
[338375568,1726576246037,-202.625992,0.00018738,2]
[338375570,1726576246051,-150.0,0.00018745,2]
[338375572,1726576246065,-150.0,0.00018745,2]
[338375574,1726576246080,-250.0,0.00018745,2]
[338375575,1726576246098,-151.298,0.00018745,2]
[338375576,1726576246113,-194.0,0.0001876,2]
[338375577,1726576246128,-151.0,0.00018764,2]
[338375578,1726576246143,-274.114274,0.00018764,2]
[338375579,1726576246158,-688.083,0.00018766,2]
[338375582,1726576246174,-239.488,0.00018766,2]
[338375583,1726576246188,-260.061806,0.00018776,2]
[338375586,1726576246204,-587.0,0.00018784,2]
[338375588,1726576246218,-600.0,0.00018787,2]
[338375590,1726576246232,-151.0,0.00018793,2]
[338375592,1726576246247,-597.74,0.000188,2]
[338375594,1726576246263,-151.0,0.000188,2]
[338375597,1726576246277,-150.112233,0.000188,2]
[338375599,1726576246291,-1000.0,0.000188,2]
[338375601,1726576246305,-516.364,0.00018822,2]
[338375602,1726576246319,-1000.0,0.00018829,2]
[338375604,1726576246332,-511.2648706,0.0001886,2]
[338375605,1726576246345,-220.251,0.00018865,2]
[338375606,1726576246354,-250.602,0.00018865,2]
[338375607,1726576246363,-5000.0,0.0001888,2]
[338375608,1726576246372,-2734.18977252,0.00018888,2]
[338375609,1726576246381,-90815.1161108,0.000189,2]
[338375610,1726576246391,-151.0,0.000189,2]
[338375611,1726576246400,-151.0,0.000189,2]
[338375612,1726576246720,-3000.0,0.000189,2]
[338375613,1726576246750,-160.0,0.000189,5]
[338375614,1726576246769,-5000.0,0.00018904,2]
[338375615,1726576246779,-4540.55004891,0.00018904,2]
[338375616,1726576246788,-3000.0,0.0001891,2]
[338375617,1726576246797,-302.1,0.00018915,2]
[338375618,1726576246809,-3000.0,0.0001892,2]
[338375619,1726576246819,-306.0,0.00018928,2]
[338375620,1726576246830,-3000.0,0.0001893,2]
[338375621,1726576246842,-3000.0,0.0001894,2]
[338375622,1726576246851,-620.02806277,0.00018947,2]
[338375623,1726576246861,-3000.0,0.0001895,2]
[338375624,1726576246871,-3000.0,0.0001896,2]
[338375625,1726576246880,-151.0,0.00018978,2]
[338375626,1726576246890,-600.0,0.00018978,2]
[338375627,1726576246899,-200.0,0.00019,2]
[338375628,1726576246908,-151.0,0.00019,2]
[338375629,1726576246917,-1000.0,0.00019,19]
[338375630,1726576246929,-153.0,0.00019014,2]
[338375631,1726576246938,-24313.97777032,0.00019046,2]
[338375632,1726576246947,-500.0,0.00019046,2]
[338375633,1726576246955,-500.0,0.00019046,2]
[338375634,1726576246964,-500.0,0.00019046,2]
[338375635,1726576246974,-500.0,0.00019046,2]
[338375636,1726576246983,-300.24452277,0.00019046,2]
[338375637,1726576246993,-160.0,0.00019067,6]
[338375638,1726576247002,-302.1,0.00019128,2]
[338375639,1726576247011,-630.69191083,0.00019135,2]
[338375640,1726576247020,-1000.0,0.00019142,2]
[338375641,1726576247029,-590.36892812,0.00019142,2]
[338375642,1726576247038,-1000.0,0.00019142,2]
[338375643,1726576247047,-7591.18162658,0.00019159,2]
[338375644,1726576247056,-151.0,0.00019159,2]
[338375645,1726576247065,-151.0,0.00019159,2]
[338375646,1726576247074,-600.0,0.0001917,2]
[338375647,1726576247083,-500.0,0.00019173,2]
[338375648,1726576247092,-500.0,0.00019173,2]
[338375649,1726576247102,-500.0,0.00019173,2]
[338375650,1726576247111,-350.93703334,0.00019173,2]
[338375651,1726576247120,-151.46387446,0.00019173,2]
[338375652,1726576247129,-500.41278652,0.00019173,2]
[338375653,1726576247138,-500.16454605,0.00019173,2]
[338375654,1726576247147,-500.0,0.00019173,2]
[338375655,1726576247156,-500.0,0.00019173,2]
[338375656,1726576247169,-500.0,0.00019173,2]
[338375657,1726576247178,-500.0,0.00019173,2]
[338375658,1726576247188,-500.0,0.00019173,2]
[338375659,1726576247197,-506.71155717,0.00019173,2]
[338375660,1726576247206,-2000.0,0.00019178,2]
[338375661,1726576247215,-2000.0,0.00019178,2]
[338375662,1726576247225,-2000.0,0.00019178,2]
[338375663,1726576247235,-2000.0,0.00019178,2]
[338375664,1726576247244,-2000.0,0.00019178,2]
[338375665,1726576247254,-1462.69999118,0.00019178,2]
[338375666,1726576247263,-1000.0,0.00019178,2]
[338375667,1726576247273,-163.702936,0.00019178,2]
[338375668,1726576247282,-170.411289,0.00019178,2]
[338375669,1726576247291,-151.0,0.00019178,2]
[338375670,1726576247300,-151.0,0.00019178,2]
[338375671,1726576247309,-151.0,0.00019178,2]
[338375672,1726576247318,-151.0,0.00019178,2]
[338375673,1726576247328,-151.0,0.00019178,2]
[338375674,1726576247339,-151.0,0.00019178,2]
[338375675,1726576247348,-151.0,0.00019178,2]
[338375676,1726576247357,-151.0,0.00019178,2]
[338375677,1726576247366,-254.803524,0.00019178,2]
[338375678,1726576247375,-3851.803333,0.00019178,2]
[338375679,1726576247385,-243.415561,0.00019178,2]
[338375680,1726576247394,-243.415561,0.00019178,2]
[338375681,1726576247403,-243.415561,0.00019178,2]
[338375682,1726576247413,-243.415561,0.00019178,2]
[338375683,1726576247422,-243.415561,0.00019178,2]
[338375684,1726576247432,-243.415561,0.00019178,2]
[338375685,1726576247442,-243.415561,0.00019178,2]
[338375686,1726576247452,-243.415561,0.00019178,2]
[338375687,1726576247463,-243.415561,0.00019178,2]
[338375688,1726576247472,-243.415561,0.00019178,2]
[338375689,1726576247482,-243.415561,0.00019178,2]
[338375690,1726576247491,-243.415561,0.00019178,2]
[338375691,1726576247500,-243.415561,0.00019178,2]
[338375692,1726576247510,-243.415561,0.00019178,2]
[338375693,1726576247519,-243.415561,0.00019178,2]
[338375694,1726576247529,-243.415561,0.00019178,2]
[338375695,1726576247540,-243.415561,0.00019178,2]
[338375696,1726576247550,-243.415561,0.00019178,2]
[338375697,1726576247561,-243.415561,0.00019178,2]
[338375698,1726576247570,-243.415568,0.00019178,2]
[338375699,1726576247579,-262.174786,0.00019178,2]
[338375700,1726576247592,-262.174786,0.00019178,2]
[338375701,1726576247601,-262.174786,0.00019178,2]
[338375702,1726576247610,-262.174786,0.00019178,2]
[338375703,1726576247620,-262.174786,0.00019178,2]
[338375704,1726576247629,-262.174786,0.00019178,2]
[338375705,1726576247638,-262.174786,0.00019178,2]
[338375706,1726576247648,-262.174786,0.00019178,2]
[338375707,1726576247659,-262.174786,0.00019178,2]
[338375708,1726576247668,-262.174786,0.00019178,2]
[338375709,1726576247678,-262.174786,0.00019178,2]
[338375710,1726576247688,-262.174786,0.00019178,2]
[338375711,1726576247698,-262.174786,0.00019178,2]
[338375712,1726576247707,-262.174786,0.00019178,2]
[338375713,1726576247717,-262.174786,0.00019178,2]
[338375714,1726576247726,-262.174786,0.00019178,2]
[338375715,1726576247735,-262.174786,0.00019178,2]
[338375716,1726576247745,-262.174786,0.00019178,2]
[338375717,1726576247755,-262.174786,0.00019178,2]
[338375718,1726576247764,-262.17479,0.00019178,2]
[338375719,1726576247774,-431.706123,0.00019178,2]
[338375720,1726576247784,-431.706123,0.00019178,2]
[338375721,1726576247793,-431.706123,0.00019178,2]
[338375722,1726576247803,-431.706123,0.00019178,2]
[338375723,1726576247812,-431.706123,0.00019178,2]
[338375724,1726576247821,-431.706123,0.00019178,2]
[338375725,1726576247831,-431.706123,0.00019178,2]
[338375726,1726576247846,-431.706123,0.00019178,2]
[338375727,1726576247855,-431.706123,0.00019178,2]
[338375728,1726576247864,-431.706123,0.00019178,2]
[338375729,1726576247873,-431.706123,0.00019178,2]
[338375730,1726576247883,-431.706123,0.00019178,2]
[338375731,1726576247892,-431.706123,0.00019178,2]